bitfinex/quotes_BTCUSD_20250922
["timestamp","ask_amount","ask_price","bid_price","bid_amount"]
[1758581328887,1.78108013,112830.0,112820.0,0.0004]
[1758581330334,1.75389013,112830.0,112820.0,0.00565]
[1758581330495,1.75389013,112830.0,112820.0,0.03024]
[1758581330753,1.47601013,112830.0,112820.0,0.03024]
[1758581330961,1.75389013,112830.0,112820.0,0.03024]
[1758581331392,1.77714013,112830.0,112820.0,0.03024]
[1758581333446,1.77913013,112830.0,112820.0,0.03024]
[1758581333962,1.77913013,112830.0,112820.0,0.00254]
[1758581337728,1.78236013,112830.0,112820.0,0.0004]
[1758581338113,1.77913013,112830.0,112820.0,0.00252]
[1758581338627,1.77900013,112830.0,112820.0,0.00252]
[1758581338998,1.77900013,112830.0,112820.0,0.0004]
[1758581339399,1.78223013,112830.0,112820.0,0.0004]
[1758581341977,1.78226087,112830.0,112820.0,0.0004]
[1758581343105,1.81341629,112830.0,112820.0,0.0004]
[1758581345055,1.81333629,112830.0,112820.0,0.0004]
[1758581345229,1.81010629,112830.0,112820.0,0.0004]
[1758581345803,1.81010629,112830.0,112820.0,0.00252]
[1758581345980,1.77902801,112830.0,112820.0,0.00252]
[1758581346329,1.81012533,112830.0,112820.0,0.00252]
[1758581347490,1.50136991,112830.0,112820.0,0.00252]
[1758581347709,1.47552821,112830.0,112820.0,0.00568]
[1758581347935,1.47552821,112830.0,112820.0,0.03038]
[1758581348371,1.49884821,112830.0,112820.0,0.03038]
[1758581348560,1.49880821,112830.0,112820.0,0.03038]
[1758581349025,1.49881239,112830.0,112820.0,0.03038]
[1758581349151,1.50087239,112830.0,112820.0,0.03038]
[1758581353046,1.50087239,112830.0,112820.0,0.02722]
[1758581353243,1.77900409,112830.0,112820.0,0.00252]
[1758581353663,1.77888409,112830.0,112820.0,0.00568]
[1758581354261,1.75400205,112830.0,112820.0,0.00252]
[1758581354465,1.77889086,112830.0,112820.0,0.00252]
[1758581356389,1.22331916,112830.0,112820.0,0.00252]
[1758581356591,1.11266949,112830.0,112820.0,0.00557]
[1758581356794,0.83388609,112830.0,112820.0,0.02981]
[1758581356988,1.11266949,112830.0,112820.0,0.02981]
[1758581357198,1.39014949,112830.0,112820.0,0.02981]
[1758581357882,1.39014908,112830.0,112820.0,0.02981]
[1758581358563,1.39014152,112830.0,112820.0,0.02981]
[1758581359384,1.11266152,112830.0,112820.0,0.02981]
[1758581359699,1.38184791,112830.0,112820.0,0.02981]
[1758581360897,1.10371621,112830.0,112820.0,0.02981]
[1758581361082,0.54810451,112830.0,112820.0,0.02981]
[1758581361234,0.82623621,112830.0,112820.0,0.02981]
[1758581362470,0.80964898,112830.0,112820.0,0.02981]
[1758581362689,0.80964657,112830.0,112820.0,0.02981]
[1758581364193,0.52529782,112830.0,112820.0,0.02981]
[1758581364400,0.80342952,112830.0,112820.0,0.02981]
[1758581364650,0.52529782,112830.0,112820.0,0.02981]
[1758581365739,0.89588714,112830.0,112820.0,0.02981]
[1758581366382,0.89797714,112830.0,112820.0,0.00252]
[1758581366611,0.96142403,112830.0,112820.0,0.0004]
[1758581370931,0.59083471,112830.0,112820.0,0.0004]
[1758581371195,0.96142403,112830.0,112820.0,0.0004]
[1758581372255,0.95839403,112830.0,112820.0,0.0004]
[1758581373302,0.96138403,112830.0,112820.0,0.0004]
[1758581373521,1.20794861,112830.0,112820.0,0.0004]
[1758581373736,1.20495861,112830.0,112820.0,0.00239]
[1758581374573,1.20495861,112830.0,112820.0,0.00563]
[1758581374574,0.53150929,112830.0,112820.0,0.00563]
[1758581374868,0.52529782,112830.0,112820.0,0.02993]
[1758581386430,0.54829782,112830.0,112820.0,0.02993]
[1758581386638,0.55030782,112830.0,112820.0,0.00563]
[1758581387985,0.55030782,112830.0,112820.0,0.02993]
[1758581388426,0.92089714,112830.0,112820.0,0.02993]
[1758581389198,0.9271145,112830.0,112820.0,0.02993]
[1758581389432,0.9271145,112830.0,112820.0,0.02669]
[1758581390685,0.9271145,112830.0,112820.0,0.00239]
[1758581395849,0.92711513,112830.0,112820.0,0.00239]
[1758581396852,0.93010513,112830.0,112820.0,0.0004]
[1758581399166,0.92971398,112830.0,112820.0,1.548e-05]
[1758581401916,0.92672398,112830.0,112820.0,0.00199548]
[1758581402342,0.92672398,112830.0,112820.0,1.548e-05]
[1758581402559,0.92981398,112830.0,112820.0,1.548e-05]
[1758581402786,0.55613466,112830.0,112820.0,0.00199548]
[1758581403014,0.53112466,112830.0,112820.0,0.1318325]
[1758581403226,0.52490667,112830.0,112820.0,0.11410515]
[1758581406871,0.52490667,112830.0,112820.0,0.39162515]
[1758581407880,0.54830667,112830.0,112820.0,0.39162515]
[1758581411386,0.54830667,112830.0,112820.0,0.11410515]
[1758581411565,0.54830667,112830.0,112820.0,0.39150515]
[1758581413781,0.54830667,112830.0,112820.0,0.11410515]
[1758581413989,0.54830667,112830.0,112820.0,0.39146515]
[1758581414287,0.54830667,112830.0,112820.0,0.11410515]
[1758581414418,0.54830667,112830.0,112820.0,0.39142515]
[1758581415052,0.92401599,112830.0,112820.0,1.548e-05]
[1758581415274,0.96140134,112830.0,112820.0,1.548e-05]
[1758581415501,1.25537955,112830.0,112820.0,1.548e-05]
[1758581416193,0.97797955,112830.0,112820.0,1.548e-05]
[1758581416328,1.25537955,112830.0,112820.0,1.548e-05]
[1758581419221,1.26366487,112830.0,112820.0,1.548e-05]
[1758581419443,1.29569572,112830.0,112820.0,1.548e-05]
[1758581420972,1.1328984,112830.0,112820.0,1.548e-05]
[1758581421186,1.07153454,112830.0,112820.0,1.548e-05]
[1758581421454,1.34909454,112830.0,112820.0,1.548e-05]
[1758581421662,1.31792629,112830.0,112820.0,1.548e-05]
[1758581424659,1.04036629,112830.0,112820.0,1.548e-05]
[1758581424800,1.31788629,112830.0,112820.0,1.548e-05]
[1758581425019,1.04036629,112830.0,112820.0,1.548e-05]
[1758581425225,1.31784629,112830.0,112820.0,1.548e-05]
[1758581425442,1.31780629,112830.0,112820.0,1.548e-05]
[1758581426347,1.31777736,112830.0,112820.0,1.548e-05]
[1758581426803,1.50332158,112830.0,112820.0,1.548e-05]
[1758581428821,1.50328158,112830.0,112820.0,1.548e-05]
[1758581429260,1.49499626,112830.0,112820.0,1.548e-05]
[1758581431139,1.21759626,112830.0,112820.0,1.548e-05]
[1758581431359,1.49491626,112830.0,112820.0,1.548e-05]
[1758581431957,1.49489015,112830.0,112820.0,1.548e-05]
[1758581432166,1.21757015,112830.0,112820.0,1.548e-05]
[1758581432367,1.49485015,112830.0,112820.0,1.548e-05]
[1758581433220,1.49485015,112830.0,112820.0,0.02001548]
[1758581433423,1.21757015,112830.0,112820.0,0.02001548]
[1758581433633,1.49493015,112830.0,112820.0,0.02001548]
[1758581433831,1.21757015,112830.0,112820.0,0.02001548]
[1758581434115,1.49493015,112830.0,112820.0,0.02001548]
[1758581434333,1.49489015,112830.0,112820.0,0.02001548]
[1758581436144,1.49489077,112830.0,112820.0,0.02001548]
[1758581437345,1.50316133,112830.0,112820.0,0.02001548]
[1758581437549,1.53432958,112830.0,112820.0,0.02001548]
[1758581438151,1.22584133,112830.0,112820.0,0.02001548]
[1758581438354,1.50312133,112830.0,112820.0,0.02001548]
[1758581438581,1.49485077,112830.0,112820.0,0.02001548]
[1758581438934,1.49485271,112830.0,112820.0,0.02001548]
[1758581440345,1.50312685,112830.0,112820.0,0.02001548]
[1758581440937,1.4969224,112830.0,112820.0,0.02001548]
[1758581441144,1.50312762,112830.0,112820.0,0.02001548]
[1758581442640,1.50300762,112830.0,112820.0,0.02001548]
[1758581448597,1.5030445,112830.0,112820.0,0.02001548]
[1758581451934,1.2258845,112830.0,112820.0,0.02001548]
[1758581452180,1.5028845,112830.0,112820.0,0.02001548]
[1758581458908,1.2258845,112830.0,112820.0,0.02001548]
[1758581459108,1.4997945,112830.0,112820.0,0.02515548]
[1758581459367,1.22169966,112830.0,112820.0,0.02214548]
[1758581459568,1.50267836,112830.0,112820.0,0.02001548]
[1758581465317,1.50279836,112830.0,112820.0,0.02001548]
[1758581469109,1.50283836,112830.0,112820.0,0.02001548]
[1758581469507,1.22567836,112830.0,112820.0,0.02001548]
[1758581469764,1.22273836,112830.0,112820.0,0.02214548]
[1758581469937,1.49985836,112830.0,112820.0,0.02214548]
[1758581470937,1.11115999,112830.0,112820.0,0.02515548]
[1758581471157,1.11115999,112830.0,112820.0,0.04958548]
[1758581471158,0.83399999,112830.0,112820.0,0.04958548]
[1758581472588,1.11203869,112830.0,112820.0,0.04958548]
[1758581472921,1.13579869,112830.0,112820.0,0.04958548]
[1758581473327,0.85775999,112830.0,112820.0,0.04958548]
[1758581474208,0.83399999,112830.0,112820.0,0.04958548]
[1758581476264,1.11203869,112830.0,112820.0,0.04958548]
[1758581476482,1.13517869,112830.0,112820.0,0.04958548]
[1758581479363,0.83399999,112830.0,112820.0,0.04804548]
[1758581480195,0.83399923,112830.0,112820.0,0.04804548]
[1758581481320,0.55596053,112830.0,112820.0,0.04804548]
[1758581481561,0.83399923,112830.0,112820.0,0.04804548]
[1758581483816,0.85713923,112830.0,112820.0,0.04804548]
[1758581485636,0.57910053,112830.0,112820.0,0.04804548]
[1758581485822,0.85713923,112830.0,112820.0,0.04804548]
[1758581488218,0.85921923,112830.0,112820.0,0.04503548]
[1758581488422,0.85921923,112830.0,112820.0,0.02214548]
[1758581488634,0.95509553,112830.0,112820.0,0.02001548]
[1758581488866,0.98626998,112830.0,112820.0,0.02001548]
[1758581489304,0.98627844,112830.0,112820.0,0.02001548]
[1758581493324,1.07154811,112830.0,112820.0,0.02001548]
[1758581493538,1.10357904,112830.0,112820.0,0.02001548]
[1758581496325,1.07154811,112830.0,112820.0,0.02001548]
[1758581499498,1.34866811,112830.0,112820.0,0.02001548]
[1758581500700,1.07154811,112830.0,112820.0,0.02001548]
[1758581500874,1.34862811,112830.0,112820.0,0.02001548]
[1758581502148,1.34858811,112830.0,112820.0,0.02001548]
[1758581505015,1.07154811,112830.0,112820.0,0.02001548]
[1758581505230,1.34858811,112830.0,112820.0,0.02001548]
[1758581505435,1.07154811,112830.0,112820.0,0.02001548]
[1758581505644,1.34854811,112830.0,112820.0,0.02001548]
[1758581506602,1.34854788,112830.0,112820.0,0.02001548]
[1758581512905,0.97785288,112830.0,112820.0,0.02001548]
[1758581513104,1.34854788,112830.0,112820.0,0.02001548]
[1758581522116,1.31737963,112830.0,112820.0,0.02001548]
[1758581522609,0.94668463,112830.0,112820.0,0.02001548]
[1758581522791,1.31737963,112830.0,112820.0,0.02001548]
[1758581527116,1.31725963,112830.0,112820.0,0.02001548]
[1758581527731,1.34842788,112830.0,112820.0,0.02001548]
[1758581528160,0.54844178,112820.0,112810.0,1e-08]
[1758581528379,1.34450567,112820.0,112810.0,1e-08]
[1758581528601,1.37285567,112820.0,112810.0,1e-08]
[1758581528800,1.39951047,112820.0,112810.0,1e-08]
[1758581529011,1.39951418,112820.0,112810.0,1e-08]
[1758581529248,1.399561,112820.0,112810.0,1e-08]
[1758581529885,1.411561,112820.0,112810.0,1e-08]
[1758581530084,1.122561,112820.0,112810.0,1e-08]
[1758581530303,1.61767599,112820.0,112810.0,1e-08]
[1758581530511,1.820256,112820.0,112810.0,1e-08]
[1758581530957,1.825256,112820.0,112810.0,1e-08]
[1758581531328,1.937096,112820.0,112810.0,1e-08]
[1758581531740,1.841256,112820.0,112810.0,1e-08]
[1758581531982,1.564256,112820.0,112810.0,1e-08]
[1758581532187,1.841256,112820.0,112810.0,1e-08]
[1758581532536,1.470561,112820.0,112810.0,1e-08]
[1758581532960,1.43876778,112820.0,112810.0,1e-08]
[1758581533586,1.43875623,112820.0,112810.0,1e-08]
[1758581534599,1.80968894,112820.0,112810.0,1e-08]
[1758581534804,1.43875623,112820.0,112810.0,1e-08]
[1758581535338,1.48543567,112820.0,112810.0,1e-08]
[1758581535517,1.85636838,112820.0,112810.0,1e-08]
[1758581538333,1.85635067,112820.0,112810.0,1e-08]
[1758581540311,1.85639067,112820.0,112810.0,1e-08]
[1758581540515,1.48545796,112820.0,112810.0,1e-08]
[1758581541703,1.43877852,112820.0,112810.0,1e-08]
[1758581546634,1.80971123,112820.0,112810.0,1e-08]
[1758581546767,1.90555123,112820.0,112810.0,1e-08]
[1758581546988,1.53267123,112820.0,112810.0,1e-08]
[1758581547201,1.87438298,112820.0,112810.0,1e-08]
[1758581548761,1.5942522,112820.0,112810.0,1e-08]
[1758581548936,1.99830045,112820.0,112810.0,1e-08]
[1758581551795,1.62542045,112820.0,112810.0,1e-08]
[1758581551952,1.99830045,112820.0,112810.0,1e-08]
[1758581553550,1.62542045,112820.0,112810.0,1e-08]
[1758581554003,1.99830971,112820.0,112810.0,1e-08]
[1758581555230,1.90246971,112820.0,112810.0,1e-08]
[1758581555363,1.59426146,112820.0,112810.0,1e-08]
[1758581555563,1.96404146,112820.0,112810.0,0.00197001]
[1758581556201,0.51728924,112810.0,112800.0,0.03687]
[1758581556406,1.46706067,112810.0,112800.0,0.03687]
[1758581556602,1.46706067,112810.0,112800.0,0.03884]
[1758581556804,1.46919067,112810.0,112800.0,0.03884]
[1758581557010,1.4958492,112810.0,112800.0,0.03884]
[1758581557382,1.5118492,112810.0,112800.0,0.03884]
[1758581557944,1.2326792,112810.0,112800.0,0.03884]
[1758581558147,1.50972983,112810.0,112800.0,0.03884]
[1758581561029,1.23268983,112810.0,112800.0,0.03884]
[1758581561225,1.50972983,112810.0,112800.0,0.03884]
[1758581562535,1.23268983,112810.0,112800.0,0.03884]
[1758581562735,1.50972983,112810.0,112800.0,0.03884]
[1758581565082,1.50973906,112810.0,112800.0,0.03884]
[1758581569574,1.50974664,112810.0,112800.0,0.03884]
[1758581569931,1.14743697,112810.0,112800.0,0.03884]
[1758581570137,1.42447697,112810.0,112800.0,0.03884]
[1758581570763,0.86806721,112810.0,112800.0,0.03884]
[1758581570970,1.42447697,112810.0,112800.0,0.03884]
[1758581571246,1.14743697,112810.0,112800.0,0.03884]
[1758581571440,1.42447697,112810.0,112800.0,0.03884]
[1758581571881,1.45140697,112810.0,112800.0,0.03884]
[1758581572810,1.42447697,112810.0,112800.0,0.03884]
[1758581575970,1.14743697,112810.0,112800.0,0.03884]
[1758581576202,1.42447697,112810.0,112800.0,0.03884]
[1758581577604,1.42650697,112810.0,112800.0,0.03884]
[1758581577805,1.42447697,112810.0,112800.0,0.03884]
[1758581579062,1.42449007,112810.0,112800.0,0.03884]
[1758581580850,1.45098007,112810.0,112800.0,0.03884]
[1758581581600,1.45400007,112810.0,112800.0,0.01241]
[1758581582579,1.45098007,112810.0,112800.0,0.01241]
[1758581582796,1.45098007,112810.0,112800.0,0.0362]
[1758581583411,1.45400007,112810.0,112800.0,0.01241]
[1758581584306,1.45400007,112810.0,112800.0,0.0362]
[1758581584548,1.45098007,112810.0,112800.0,0.0362]
[1758581585703,1.45098007,112810.0,112800.0,0.03923]
[1758581585926,1.45097916,112810.0,112800.0,0.03923]
[1758581587324,1.14744916,112810.0,112800.0,0.03923]
[1758581587522,0.86924428,112810.0,112800.0,0.03923]
[1758581587727,1.13795254,112810.0,112800.0,0.03923]
[1758581587977,0.86095254,112810.0,112800.0,0.03923]
[1758581588126,1.13795254,112810.0,112800.0,0.03923]
[1758581590381,0.58274766,112810.0,112800.0,0.03923]
[1758581590591,0.84437014,112810.0,112800.0,0.03923]
[1758581590822,0.84437014,112810.0,112800.0,0.05696049]
[1758581590994,1.12137014,112810.0,112800.0,0.05696049]
[1758581592222,1.11515265,112810.0,112800.0,0.05696049]
[1758581595547,0.83815265,112810.0,112800.0,0.05696049]
[1758581595757,0.55994777,112810.0,112800.0,0.05696049]
[1758581596015,0.83815265,112810.0,112800.0,0.05696049]
[1758581596210,0.55994777,112810.0,112800.0,0.23426545]
[1758581596414,0.55994777,112810.0,112800.0,0.30180463]
[1758581602824,0.55994777,112810.0,112800.0,0.12449967]
[1758581602993,0.55994777,112810.0,112800.0,0.41919016]
[1758581603195,0.55994777,112810.0,112800.0,0.40145967]
[1758581603714,0.83815265,112810.0,112800.0,0.40145967]
[1758581603913,0.83815265,112810.0,112800.0,0.57876463]
[1758581607567,0.83815265,112810.0,112800.0,0.40141967]
[1758581607776,0.86348265,112810.0,112800.0,0.39838967]
[1758581607995,1.17628695,112810.0,112800.0,0.01044]
[1758581608358,0.89808207,112810.0,112800.0,0.01044]
[1758581608765,0.95921599,112810.0,112800.0,0.01044]
[1758581608984,0.93276599,112810.0,112800.0,0.03342049]
[1758581609251,0.93276599,112810.0,112800.0,0.05593049]
[1758581609464,0.95606599,112810.0,112800.0,0.05593049]
[1758581609646,0.95921599,112810.0,112800.0,0.03027049]
[1758581613551,0.55994777,112810.0,112800.0,0.05593049]
[1758581614890,0.55994777,112810.0,112800.0,0.23323545]
[1758581615097,0.55994777,112810.0,112800.0,0.21550496]
[1758581615786,0.55994777,112810.0,112800.0,0.0382]
[1758581616034,0.55994777,112810.0,112800.0,0.05593049]
[1758581620406,0.55994777,112810.0,112800.0,0.23323545]
[1758581620590,0.55994777,112810.0,112800.0,0.21550496]
[1758581620917,0.55994777,112810.0,112800.0,0.0382]
[1758581621158,0.55994777,112810.0,112800.0,0.05593049]
[1758581621572,0.55994777,112810.0,112800.0,0.23323545]
[1758581621778,0.38265853,112810.0,112800.0,0.30077463]
[1758581621984,0.55994777,112810.0,112800.0,0.30077463]
[1758581622163,0.55994777,112810.0,112800.0,0.57769463]
[1758581622324,0.56197777,112810.0,112800.0,0.57769463]
[1758581623375,0.58527777,112810.0,112800.0,0.57769463]
[1758581624642,0.58527777,112810.0,112800.0,0.30077463]
[1758581624820,0.58527777,112810.0,112800.0,0.57769463]
[1758581625401,0.56197777,112810.0,112800.0,0.55518463]
[1758581625581,0.56197777,112810.0,112800.0,0.57769463]
[1758581626590,0.58527777,112810.0,112800.0,0.30077463]
[1758581626800,0.58527777,112810.0,112800.0,0.57769463]
[1758581629282,0.58527777,112810.0,112800.0,0.12346967]
[1758581629496,0.58527777,112810.0,112800.0,0.40034967]
[1758581630300,0.58527777,112810.0,112800.0,0.39719967]
[1758581632546,0.24527777,112810.0,112800.0,0.57450463]
[1758581632766,0.21994777,112810.0,112800.0,0.57765463]
[1758581633818,0.21994777,112810.0,112800.0,0.40034967]
[1758581634195,0.24527777,112810.0,112800.0,0.40034967]
[1758581638257,0.21994777,112810.0,112800.0,0.57765463]
[1758581643380,0.04265853,112810.0,112800.0,0.57943463]
[1758581643598,0.04265853,112810.0,112800.0,0.95022285]
[1758581643859,0.04265853,112810.0,112800.0,1.04606285]
[1758581644078,0.04265853,112810.0,112800.0,0.67334285]
[1758581644278,0.04265853,112810.0,112800.0,0.67527463]
[1758581644481,0.03865853,112810.0,112800.0,0.67527463]
[1758581644706,0.03965853,112810.0,112800.0,0.30355463]
[1758581645172,0.02665853,112810.0,112800.0,0.67527463]
[1758581645390,0.03065853,112810.0,112800.0,0.67527463]
[1758581645611,0.03165853,112810.0,112800.0,0.67627463]
[1758581646639,0.02765853,112810.0,112800.0,0.67627463]
[1758581646886,0.03265853,112810.0,112800.0,0.67927463]
[1758581647100,0.03265853,112810.0,112800.0,0.30655463]
[1758581647336,0.03265853,112810.0,112800.0,0.67923463]
[1758581647554,0.03265853,112810.0,112800.0,0.30655463]
[1758581647742,0.03265853,112810.0,112800.0,0.67923463]
[1758581648734,0.03265853,112810.0,112800.0,0.58339463]
[1758581648985,0.03265853,112810.0,112800.0,0.67923463]
[1758581652219,0.03265853,112810.0,112800.0,0.30655463]
[1758581652814,0.03265853,112810.0,112800.0,0.67923463]
[1758581653308,0.03265853,112810.0,112800.0,0.30655463]
[1758581653513,0.03265853,112810.0,112800.0,0.67923463]
[1758581654194,0.20994777,112810.0,112800.0,0.30655463]
[1758581654410,0.20994777,112810.0,112800.0,0.67923463]
[1758581654635,0.21196777,112810.0,112800.0,0.10180967]
[1758581654855,0.23796777,112810.0,112800.0,0.37654967]
[1758581656147,0.23796777,112810.0,112800.0,0.37862967]
[1758581659431,0.05746853,112810.0,112800.0,0.55593463]
[1758581659636,0.03265853,112810.0,112800.0,0.58269463]
[1758581660092,0.20994777,112810.0,112800.0,0.58269463]
[1758581660308,0.03265853,112810.0,112800.0,0.58269463]
[1758581660554,0.20994777,112810.0,112800.0,0.58269463]
[1758581661490,0.21203777,112810.0,112800.0,0.58269463]
[1758581662371,0.03474853,112810.0,112800.0,0.58269463]
[1758581662552,0.21203777,112810.0,112800.0,0.58269463]
[1758581662790,0.03474853,112810.0,112800.0,0.58269463]
[1758581663152,0.21203777,112810.0,112800.0,0.58269463]
[1758581663597,0.23498777,112810.0,112800.0,0.58269463]
[1758581664812,0.20994777,112810.0,112800.0,0.58269463]
[1758581665591,0.21203777,112810.0,112800.0,0.58269463]
[1758581665832,0.23498777,112810.0,112800.0,0.58269463]
[1758581666605,0.03265853,112810.0,112800.0,0.58269463]
[1758581668823,0.03265853,112810.0,112800.0,0.58265463]
[1758581669035,0.03265853,112810.0,112800.0,0.67849463]
[1758581670617,0.03265853,112810.0,112800.0,0.95647996]
[1758581671213,0.03265853,112810.0,112800.0,0.58383996]
[1758581671556,0.03265853,112810.0,112800.0,0.67845463]
[1758581672246,0.31064386,112810.0,112800.0,0.67845463]
[1758581673410,0.4900431,112810.0,112800.0,0.30585463]
[1758581673615,0.4930331,112810.0,112800.0,0.64961463]
[1758581673801,0.5178031,112810.0,112800.0,0.64961463]
[1758581674324,0.5178031,112810.0,112800.0,0.65157463]
[1758581674909,0.5148131,112810.0,112800.0,0.67569463]
[1758581675049,0.31064386,112810.0,112800.0,0.65478463]
[1758581675248,0.31064386,112810.0,112800.0,0.67890463]
[1758581675488,0.5178031,112810.0,112800.0,0.67569463]
[1758581675696,0.5148131,112810.0,112800.0,0.67569463]
[1758581681617,0.5148131,112810.0,112800.0,0.67890463]
[1758581683100,0.23682777,112810.0,112800.0,0.67890463]
[1758581683321,0.5148131,112810.0,112800.0,0.67890463]
[1758581689445,0.31064386,112810.0,112800.0,0.67890463]
[1758581694631,0.4879331,112810.0,112800.0,0.67890463]
[1758581695487,0.31064386,112810.0,112800.0,0.67890463]
[1758581698455,0.3106791,112810.0,112800.0,0.67890463]
[1758581700456,0.3106791,112810.0,112800.0,0.30630463]
[1758581700663,0.3106791,112810.0,112800.0,0.67882463]
[1758581706339,0.51354834,112810.0,112800.0,0.30630463]
[1758581706544,0.51354834,112810.0,112800.0,0.65149463]
[1758581707195,0.51673834,112810.0,112800.0,0.65149463]
[1758581707740,0.51354834,112810.0,112800.0,0.67560463]
[1758581713822,0.3106791,112810.0,112800.0,0.67885463]
[1758581716886,0.03265853,112810.0,112800.0,0.67885463]
[1758581717076,0.3106791,112810.0,112800.0,0.67885463]
[1758581721986,0.03265853,112810.0,112800.0,0.67911463]
[1758581722194,0.03265853,112810.0,112800.0,0.9571352]
[1758581723174,0.03265853,112810.0,112800.0,0.67911463]
[1758581723395,0.03265853,112810.0,112800.0,0.9571352]
[1758581723753,0.03265853,112810.0,112800.0,0.67911463]
[1758581728575,0.03265853,112810.0,112800.0,0.58331463]
[1758581728777,0.03265853,112810.0,112800.0,0.67907463]
[1758581730463,0.3106791,112810.0,112800.0,0.67907463]
[1758581730662,0.3126391,112810.0,112800.0,0.10166967]
[1758581730903,0.51757834,112810.0,112800.0,0.09970967]
[1758581731112,0.61029748,112810.0,112800.0,0.37638967]
[1758581731504,0.61029748,112810.0,112800.0,0.09970967]
[1758581731715,0.61029748,112810.0,112800.0,0.37638967]
[1758581731850,0.61029748,112810.0,112800.0,0.55369463]
[1758581733687,0.61029748,112810.0,112800.0,0.37638967]
[1758581734813,0.61029748,112810.0,112800.0,0.55369463]
[1758581738298,0.61029748,112810.0,112800.0,0.55583463]
[1758581738524,0.60721748,112810.0,112800.0,0.58070463]
[1758581738847,0.61029748,112810.0,112800.0,0.58070463]
[1758581739157,0.61029748,112810.0,112800.0,0.55583463]
[1758581741430,0.60721748,112810.0,112800.0,0.55583463]
[1758581741635,0.42992824,112810.0,112800.0,0.55583463]
[1758581742492,0.60721748,112810.0,112800.0,0.55583463]
[1758581744480,0.42992824,112810.0,112800.0,0.58070463]
[1758581745152,0.60721748,112810.0,112800.0,0.58070463]
[1758581746575,0.58264748,112810.0,112800.0,0.55891463]
[1758581746782,0.58264748,112810.0,112800.0,0.58378463]
[1758581747187,0.60721748,112810.0,112800.0,0.58378463]
[1758581748471,0.42992824,112810.0,112800.0,0.58378463]
[1758581749212,0.43862691,112810.0,112800.0,0.58378463]
[1758581754670,0.43862691,112810.0,112800.0,0.55579463]
[1758581754856,0.44170691,112810.0,112800.0,0.65163463]
[1758581756722,0.44170691,112810.0,112800.0,0.67650463]
[1758581756723,0.43862691,112810.0,112800.0,0.67650463]
[1758581761070,0.43862691,112810.0,112800.0,0.30402463]
[1758581761252,0.43862691,112810.0,112800.0,0.58062463]
[1758581761458,0.43862691,112810.0,112800.0,0.67646463]
[1758581762351,0.61591615,112810.0,112800.0,0.30402463]
[1758581762587,0.61903615,112810.0,112800.0,0.30402463]
[1758581762822,0.61903615,112810.0,112800.0,0.55575463]
[1758581763449,0.44174691,112810.0,112800.0,0.55575463]
[1758581764406,0.61903615,112810.0,112800.0,0.55575463]
[1758581766371,0.61903615,112810.0,112800.0,0.57960463]
[1758581770484,0.61591615,112810.0,112800.0,0.57960463]
[1758581770678,0.61591615,112810.0,112800.0,0.30300463]
[1758581770878,0.61591615,112810.0,112800.0,0.65159463]
[1758581771079,0.61903615,112810.0,112800.0,0.65159463]
[1758581771686,0.0413572,112810.0,112800.0,0.65473463]
[1758581771896,0.0413572,112810.0,112800.0,0.67858463]
[1758581782204,0.0433572,112810.0,112800.0,0.30614463]
[1758581782402,0.22064644,112810.0,112800.0,0.67854463]
[1758581783120,0.24473644,112810.0,112800.0,0.67854463]
[1758581783329,0.24473644,112810.0,112800.0,0.67540463]
[1758581783983,0.24797644,112810.0,112800.0,0.10184967]
[1758581784190,0.61871615,112810.0,112800.0,0.47210967]
[1758581784388,0.61871615,112810.0,112800.0,0.09970967]
[1758581784591,0.61871615,112810.0,112800.0,0.37626967]
[1758581785202,0.61871615,112810.0,112800.0,0.09970967]
[1758581785539,0.61547615,112810.0,112800.0,0.55563463]
[1758581786089,0.61871615,112810.0,112800.0,0.55563463]
[1758581786530,0.61871615,112810.0,112800.0,0.37832967]
[1758581786967,0.61871615,112810.0,112800.0,0.37828967]
[1758581788392,0.61871615,112810.0,112800.0,0.09970967]
[1758581788592,0.95871615,112810.0,112800.0,0.01444]
[1758581788971,0.95871615,112810.0,112800.0,0.1804]
[1758581792580,0.86605861,112810.0,112800.0,0.1804]
[1758581794470,1.14414078,112810.0,112800.0,0.1804]
[1758581800848,0.58797644,112810.0,112800.0,0.1804]
[1758581801058,1.14414078,112810.0,112800.0,0.1804]
[1758581804290,0.24797644,112810.0,112800.0,0.1804]
[1758581804517,0.52605861,112810.0,112800.0,0.1804]
[1758581811535,1.42222295,112810.0,112800.0,0.01444]
[1758581811784,1.60044196,112810.0,112800.0,1e-08]
[1758581811997,0.54892546,112800.0,112790.0,0.0004]
[1758581812203,1.68250695,112800.0,112790.0,0.0004]
[1758581812340,1.71207695,112800.0,112790.0,0.0004]
[1758581812758,1.73873458,112800.0,112790.0,0.0004]
[1758581813370,1.72214163,112800.0,112790.0,0.0004]
[1758581814193,1.72414163,112800.0,112790.0,0.0004]
[1758581815166,1.73214163,112800.0,112790.0,0.0004]
[1758581815364,1.7259196,112800.0,112790.0,0.0004]
[1758581815600,1.4493996,112800.0,112790.0,0.0004]
[1758581816057,1.41621693,112800.0,112790.0,0.0004]
[1758581816391,1.6942991,112800.0,112790.0,0.0004]
[1758581819296,1.6943391,112800.0,112790.0,0.0004]
[1758581819558,1.69468095,112800.0,112790.0,0.0004]
[1758581820860,1.41812095,112800.0,112790.0,0.0004]
[1758581821055,1.69468095,112800.0,112790.0,0.0004]
[1758581825167,1.41812095,112800.0,112790.0,0.0004]
[1758581825391,1.69468095,112800.0,112790.0,0.0004]
[1758581826964,0.86009259,112800.0,112790.0,0.0004]
[1758581827146,1.69468095,112800.0,112790.0,0.0004]
[1758581829229,1.38898483,112800.0,112790.0,0.00251]
[1758581829444,1.41154483,112800.0,112790.0,0.02724]
[1758581829651,1.41154483,112800.0,112790.0,0.00251]
[1758581829889,1.41473483,112800.0,112790.0,0.00251]
[1758581832365,1.41154483,112800.0,112790.0,0.02724]
[1758581834686,1.41154483,112800.0,112790.0,0.00251]
[1758581834894,1.41473483,112800.0,112790.0,0.00251]
[1758581835573,1.41154483,112800.0,112790.0,0.00251]
[1758581835712,1.41154483,112800.0,112790.0,0.00563]
[1758581835713,1.38691483,112800.0,112790.0,0.00563]
[1758581835932,1.38691483,112800.0,112790.0,0.03026]
[1758581836128,1.11035483,112800.0,112790.0,0.03026]
[1758581837237,1.13502483,112800.0,112790.0,0.03026]
[1758581839226,1.11035483,112800.0,112790.0,0.03026]
[1758581839422,0.83215871,112800.0,112790.0,0.03026]
[1758581840015,1.11035483,112800.0,112790.0,0.03026]
[1758581840649,1.11035483,112800.0,112790.0,0.04799206]
[1758581842078,1.11244483,112800.0,112790.0,0.03026]
[1758581842277,1.11244483,112800.0,112790.0,0.0004]
[1758581842609,1.13810483,112800.0,112790.0,0.0004]
[1758581844398,1.13502483,112800.0,112790.0,0.00253]
[1758581844616,1.13502483,112800.0,112790.0,0.03014]
[1758581845894,1.11035483,112800.0,112790.0,0.04787206]